[Event "European Rapid Championship 2021"]
[Site "Katowice"]
[Date "2021.12.18"]
[Round "3.9"]
[White "Snihur, Piotr"]
[Black "Kalogeris, Ioannis"]
[Result "0-1"]
[ECO "D11"]
[WhiteElo "2006"]
[BlackElo "2357"]
[Annotator "ChessBase"]
[PlyCount "90"]
[EventDate "2021.12.18"]
[EventType "swiss"]
[EventCountry "POL"]
[SourceTitle "playchess.com"]
[Source "ChessBase"]
[SourceQuality "1"]
[TimeControl "900+10"]

1. c4 {[%emt 0:00:06]} c6 {[%emt 0:03:41]} 2. d4 {[%emt 0:00:13]} d5 {[%emt 0:
00:02]} 3. Nf3 {[%emt 0:00:04]} Nf6 {[%emt 0:00:02]} 4. e3 {[%emt 0:00:06]} Bg4
{[%emt 0:00:18]} 5. cxd5 {[%emt 0:01:01]} cxd5 {[%emt 0:00:29]} 6. Qa4+ {
[%emt 0:00:04]} Bd7 {[%emt 0:00:11]} 7. Qb3 {[%emt 0:00:12]} Nc6 {[%emt 0:01:
29]} 8. Nc3 {[%emt 0:00:39]} Na5 {[%emt 0:00:04]} 9. Qd1 {[%emt 0:00:58]} a6 {
[%emt 0:00:32]} 10. Bd3 {[%emt 0:00:18]} Bg4 {[%emt 0:00:15]} 11. h3 {[%emt 0:
02:26]} Bxf3 {[%emt 0:01:20]} 12. Qxf3 {[%emt 0:00:04]} e6 {[%emt 0:00:04]} 13.
g4 {[%emt 0:00:46]} Be7 {[%emt 0:00:13]} 14. g5 {[%emt 0:01:00]} Nd7 {[%emt 0:
00:21]} 15. h4 {[%emt 0:00:03]} Rc8 {[%emt 0:00:15]} 16. Kf1 {[%emt 0:00:40]}
b5 {[%emt 0:00:31]} 17. Rg1 {[%emt 0:01:25]} Nc4 {[%emt 0:00:27]} 18. Ne2 {
[%emt 0:01:10]} Qa5 {[%emt 0:00:25]} 19. Nf4 {[%emt 0:04:11]} Nd2+ {[%emt 0:01:
12]} 20. Bxd2 {[%emt 0:00:01]} Qxd2 {[%emt 0:00:01]} 21. Kg2 {[%emt 0:00:12]}
Nb6 {[%emt 0:03:28]} 22. b3 {[%emt 0:00:59]} g6 {[%emt 0:00:02]} 23. Rad1 {
[%emt 0:00:39]} Qb2 {[%emt 0:00:18]} 24. h5 {[%emt 0:00:38]} Bxg5 {[%emt 0:00:
14]} 25. hxg6 {[%emt 0:00:33]} hxg6 {[%emt 0:00:05]} 26. Kf1 {[%emt 0:00:28]}
Be7 {[%emt 0:00:12]} 27. Bxg6 {[%emt 0:00:19]} fxg6 {[%emt 0:00:12]} 28. Nxg6 {
[%emt 0:00:03]} Rg8 {[%emt 0:00:55]} 29. Qh5 {[%emt 0:00:07]} Kd7 {[%emt 0:00:
02]} 30. Qh7 {[%emt 0:00:28]} Rxg6 {[%emt 0:00:45]} 31. Rxg6 {[%emt 0:00:06]}
Rf8 {[%emt 0:00:03]} 32. Rg2 {[%emt 0:00:16]} Qxa2 {[%emt 0:00:04]} 33. Rc1 {
[%emt 0:00:11]} Qxb3 {[%emt 0:00:07]} 34. Rg7 {[%emt 0:00:05]} Re8 {[%emt 0:01:
11]} 35. Kg2 {[%emt 0:00:01]} Qa3 {[%emt 0:00:04]} 36. Rh1 {[%emt 0:00:14]} Nc4
{[%emt 0:00:02]} 37. Qg6 {[%emt 0:00:21]} Qd6 {[%emt 0:00:13]} 38. Rhh7 {
[%emt 0:00:08]} b4 {[%emt 0:00:02]} 39. Qc2 {[%emt 0:00:11]} Qc6 {[%emt 0:00:
06]} 40. Qd1 {[%emt 0:00:13]} a5 {[%emt 0:00:03]} 41. Qg4 {[%emt 0:00:08]} b3 {
[%emt 0:00:04]} 42. Rg6 {[%emt 0:00:10]} b2 {[%emt 0:00:20]} 43. Rhh6 {[%emt 0:
00:01]} Bd8 {[%emt 0:00:02]} 44. Rh7+ {[%emt 0:00:21]} Re7 {[%emt 0:00:01]} 45.
Rgg7 {[%emt 0:00:10]} b1=Q {[%emt 0:00:04]} 0-1

[Event "European Rapid Championship 2021"]
[Site "Katowice"]
[Date "2021.12.18"]
[Round "3.10"]
[White "Fus, Jakub"]
[Black "Krzywda, Andrzej"]
[Result "1-0"]
[ECO "A57"]
[WhiteElo "2252"]
[BlackElo "2123"]
[Annotator "NA"]
[PlyCount "99"]
[EventDate "2021.12.18"]
[EventType "swiss"]
[EventCountry "POL"]
[SourceTitle "playchess.com"]
[Source "ChessBase"]
[SourceQuality "1"]
[TimeControl "900+10"]

1. d4 {[%emt 0:00:02]} Nf6 {[%emt 0:00:03]} 2. c4 {[%emt 0:00:01]} c5 {[%emt 0:
00:06]} 3. d5 {[%emt 0:00:03]} b5 {[%emt 0:00:02]} 4. cxb5 {[%emt 0:00:01]} a6
{[%emt 0:00:01]} 5. e3 {[%emt 0:00:02]} g6 {[%emt 0:00:03]} 6. Nc3 {[%emt 0:00:
01]} Bg7 {[%emt 0:00:01]} 7. Nf3 {[%emt 0:00:02]} O-O {[%emt 0:00:02]} 8. a4 {
[%emt 0:00:09]} Bb7 {[%emt 0:00:11]} 9. Ra3 {[%emt 0:00:12]} e6 {[%emt 0:00:01]
} 10. dxe6 {[%emt 0:01:35]} fxe6 {[%emt 0:00:03]} 11. Be2 {[%emt 0:00:46]} d5 {
[%emt 0:00:02]} 12. O-O {[%emt 0:00:05]} Nbd7 {[%emt 0:00:38]} 13. bxa6 {
[%emt 0:01:16]} Bxa6 {[%emt 0:00:10]} 14. Bxa6 {[%emt 0:00:20]} Rxa6 {[%emt 0:
00:01]} 15. e4 {[%emt 0:00:49]} d4 {[%emt 0:01:40]} 16. Nb5 {[%emt 0:00:02]}
Qb8 {[%emt 0:02:01]} 17. Nd2 {[%emt 0:00:57]} Ne5 {[%emt 0:01:55]} 18. f4 {
[%emt 0:00:21]} Nc6 {[%emt 0:00:21]} 19. e5 {[%emt 0:02:11]} Nd5 {[%emt 0:01:
20]} 20. Ne4 {[%emt 0:00:02]} Qb6 {[%emt 0:03:05]} 21. Qc2 {[%emt 0:00:01]} Bh6
{[%emt 0:04:42]} 22. Rh3 {[%emt 0:02:18]} Bg7 {[%emt 0:00:49]} 23. b3 {[%emt 0:
00:09]} d3 {[%emt 0:01:17]} 24. Qxc5 {[%emt 0:00:17]} Ncb4 {[%emt 0:00:22]} 25.
Qxb6 {[%emt 0:00:11]} Rxb6 {[%emt 0:00:01]} 26. Nc5 {[%emt 0:00:05]} Rc8 {
[%emt 0:00:09]} 27. Nxd3 {[%emt 0:00:17]} Bf8 {[%emt 0:00:16]} 28. Nd6 {
[%emt 0:01:17]} Rc2 {[%emt 0:00:12]} 29. Nxb4 {[%emt 0:00:47]} Rxb4 {[%emt 0:
00:09]} 30. Rd3 {[%emt 0:00:26]} Nc3 {[%emt 0:00:06]} 31. Rxc3 {[%emt 0:00:57]}
Rxc3 {[%emt 0:00:01]} 32. Bd2 {[%emt 0:00:01]} Rcxb3 {[%emt 0:00:01]} 33. Bxb4
{[%emt 0:00:03]} Rxb4 {[%emt 0:00:01]} 34. Ra1 {[%emt 0:00:04]} Bxd6 {[%emt 0:
00:43]} 35. exd6 {[%emt 0:00:02]} Rd4 {[%emt 0:00:06]} 36. a5 {[%emt 0:00:06]}
Rxd6 {[%emt 0:00:02]} 37. a6 {[%emt 0:00:01]} Rd8 {[%emt 0:00:01]} 38. a7 {
[%emt 0:00:01]} Ra8 {[%emt 0:00:01]} 39. Kf2 {[%emt 0:00:01]} Kf7 {[%emt 0:00:
02]} 40. Ke3 {[%emt 0:00:01]} Ke7 {[%emt 0:00:03]} 41. Ke4 {[%emt 0:00:02]} Kd7
{[%emt 0:00:16]} 42. Ke5 {[%emt 0:00:01]} Ke7 {[%emt 0:00:30]} 43. Ra6 {
[%emt 0:00:02]} Kf7 {[%emt 0:00:02]} 44. Kd6 {[%emt 0:00:07]} Kf6 {[%emt 0:00:
01]} 45. Ra5 {[%emt 0:00:01]} h6 {[%emt 0:00:21]} 46. h4 {[%emt 0:00:01]} g5 {
[%emt 0:00:36]} 47. hxg5+ {[%emt 0:00:02]} hxg5 {[%emt 0:00:01]} 48. fxg5+ {
[%emt 0:00:01]} Kg6 {[%emt 0:00:02]} 49. Kc7 {[%emt 0:00:05]} e5 {[%emt 0:00:
03]} 50. Kb7 {[%emt 0:00:02]} 1-0

[Event "European Rapid Championship 2021"]
[Site "Katowice"]
[Date "2021.12.18"]
[Round "3.11"]
[White "Grabarczyk, Miroslaw"]
[Black "Czernek, Tymon"]
[Result "1/2-1/2"]
[ECO "E62"]
[WhiteElo "2373"]
[BlackElo "2197"]
[Annotator "NA"]
[PlyCount "78"]
[EventDate "2021.12.18"]
[EventType "swiss"]
[EventCountry "POL"]
[SourceTitle "playchess.com"]
[Source "ChessBase"]
[SourceQuality "1"]
[TimeControl "900+10"]

1. d4 {[%emt 0:00:02]} Nf6 {[%emt 0:00:01]} 2. c4 {[%emt 0:00:02]} g6 {[%emt 0:
00:01]} 3. Nf3 {[%emt 0:00:02]} Bg7 {[%emt 0:00:01]} 4. g3 {[%emt 0:00:02]} O-O
{[%emt 0:00:03]} 5. Bg2 {[%emt 0:00:02]} d6 {[%emt 0:00:01]} 6. Nc3 {[%emt 0:
00:02]} Nc6 {[%emt 0:00:08]} 7. O-O {[%emt 0:00:04]} e5 {[%emt 0:00:04]} 8.
dxe5 {[%emt 0:00:24]} dxe5 {[%emt 0:00:09]} 9. Qxd8 {[%emt 0:00:03]} Rxd8 {
[%emt 0:00:02]} 10. Bg5 {[%emt 0:00:03]} Be6 {[%emt 0:00:14]} 11. Nd2 {[%emt 0:
00:15]} h6 {[%emt 0:00:17]} 12. Bxf6 {[%emt 0:00:12]} Bxf6 {[%emt 0:00:03]} 13.
Nde4 {[%emt 0:00:40]} Be7 {[%emt 0:00:02]} 14. Nd5 {[%emt 0:00:11]} Bxd5 {
[%emt 0:00:31]} 15. cxd5 {[%emt 0:00:02]} Nb4 {[%emt 0:00:01]} 16. Nc3 {
[%emt 0:00:19]} f5 {[%emt 0:00:25]} 17. Rac1 {[%emt 0:02:18]} Bg5 {[%emt 0:00:
47]} 18. Rcd1 {[%emt 0:01:07]} e4 {[%emt 0:00:34]} 19. a3 {[%emt 0:00:10]} Na6
{[%emt 0:00:02]} 20. f3 {[%emt 0:00:25]} exf3 {[%emt 0:00:17]} 21. Bxf3 {
[%emt 0:00:07]} Bf6 {[%emt 0:00:48]} 22. e4 {[%emt 0:01:42]} Bxc3 {[%emt 0:00:
21]} 23. bxc3 {[%emt 0:00:03]} fxe4 {[%emt 0:00:01]} 24. Bxe4 {[%emt 0:00:19]}
Rd6 {[%emt 0:00:02]} 25. Bg2 {[%emt 0:00:46]} Re8 {[%emt 0:00:33]} 26. Rde1 {
[%emt 0:00:23]} Rxe1 {[%emt 0:00:03]} 27. Rxe1 {[%emt 0:00:01]} Kf7 {[%emt 0:
00:08]} 28. c4 {[%emt 0:00:22]} Nc5 {[%emt 0:00:10]} 29. Re3 {[%emt 0:00:57]}
Rb6 {[%emt 0:00:25]} 30. h4 {[%emt 0:00:14]} Rb3 {[%emt 0:00:25]} 31. Kf2 {
[%emt 0:00:25]} Kf6 {[%emt 0:01:19]} 32. Re8 {[%emt 0:00:41]} Rxa3 {[%emt 0:00:
32]} 33. Rc8 {[%emt 0:00:15]} Nd3+ {[%emt 0:00:51]} 34. Ke2 {[%emt 0:00:51]}
Ke5 {[%emt 0:02:05]} 35. Rxc7 {[%emt 0:00:13]} Kd4 {[%emt 0:00:02]} 36. d6 {
[%emt 0:01:23]} Ra2+ {[%emt 0:02:38]} 37. Kf1 {[%emt 0:00:08]} Ra1+ {[%emt 0:
00:36]} 38. Ke2 {[%emt 0:00:02]} Ra2+ {[%emt 0:00:46]} 39. Kf1 {[%emt 0:00:02]}
Ra1+ {[%emt 0:00:01]} 1/2-1/2

[Event "European Rapid Championship 2021"]
[Site "Katowice"]
[Date "2021.12.18"]
[Round "3.11"]
[White "Pavlidou, Ekaterini"]
[Black "Klekowski, Maciej"]
[Result "0-1"]
[ECO "E50"]
[WhiteElo "2172"]
[BlackElo "2528"]
[Annotator "ChessBase"]
[PlyCount "58"]
[EventDate "2021.12.18"]
[EventType "swiss"]
[EventCountry "POL"]
[SourceTitle "playchess.com"]
[Source "ChessBase"]
[SourceQuality "1"]
[TimeControl "900+10"]

1. d4 {[%emt 0:00:04]} Nf6 {[%emt 0:00:01]} 2. c4 {[%emt 0:00:02]} e6 {[%emt 0:
00:02]} 3. Nc3 {[%emt 0:00:02]} Bb4 {[%emt 0:00:01]} 4. e3 {[%emt 0:00:02]} O-O
{[%emt 0:00:06]} 5. Nf3 {[%emt 0:00:03]} b6 {[%emt 0:00:02]} 6. Bd2 {[%emt 0:
00:03]} Bb7 {[%emt 0:00:01]} 7. Bd3 {[%emt 0:00:04]} d5 {[%emt 0:00:04]} 8.
cxd5 {[%emt 0:00:04]} exd5 {[%emt 0:00:01]} 9. Rc1 {[%emt 0:00:01]} a6 {
[%emt 0:00:01]} 10. O-O {[%emt 0:00:05]} Bd6 {[%emt 0:00:08]} 11. Ne5 {[%emt 0:
00:08]} c5 {[%emt 0:00:55]} 12. f4 {[%emt 0:00:04]} Nc6 {[%emt 0:00:25]} 13.
Ng4 {[%emt 0:01:34]} Be7 {[%emt 0:09:10]} 14. Nxf6+ {[%emt 0:00:06]} Bxf6 {
[%emt 0:00:01]} 15. Qh5 {[%emt 0:00:35]} g6 {[%emt 0:00:02]} 16. Qxd5 {[%emt 0:
00:33]} cxd4 {[%emt 0:00:52]} 17. Qxd8 {[%emt 0:01:11]} Raxd8 {[%emt 0:00:20]}
18. Ne4 {[%emt 0:01:04]} Bg7 {[%emt 0:00:07]} 19. Bb1 {[%emt 0:02:04]} Rfe8 {
[%emt 0:00:22]} 20. f5 {[%emt 0:01:05]} gxf5 {[%emt 0:00:20]} 21. Rxf5 {
[%emt 0:00:59]} dxe3 {[%emt 0:00:02]} 22. Bxe3 {[%emt 0:00:35]} Nd4 {[%emt 0:
00:01]} 23. Bxd4 {[%emt 0:00:06]} Bxe4 {[%emt 0:00:36]} 24. Bxb6 {[%emt 0:00:
29]} Bxf5 {[%emt 0:00:11]} 25. Bxf5 {[%emt 0:00:26]} Rb8 {[%emt 0:00:08]} 26.
Bc7 {[%emt 0:00:28]} Rxb2 {[%emt 0:00:12]} 27. Bd7 {[%emt 0:00:04]} Bd4+ {
[%emt 0:00:03]} 28. Kh1 {[%emt 0:00:12]} Rc2 {[%emt 0:00:39]} 29. Rd1 {[%emt 0:
00:01]} Re7 {[%emt 0:00:03]} 0-1

[Event "European Rapid Championship 2021"]
[Site "Katowice"]
[Date "2021.12.18"]
[Round "3.12"]
[White "Povilaitis, Tomas"]
[Black "Wisniewski, Michal"]
[Result "1/2-1/2"]
[ECO "B03"]
[WhiteElo "2006"]
[BlackElo "2248"]
[Annotator "NA"]
[PlyCount "83"]
[EventDate "2021.12.18"]
[EventType "swiss"]
[EventCountry "POL"]
[SourceTitle "playchess.com"]
[Source "ChessBase"]
[SourceQuality "1"]
[TimeControl "900+10"]

1. e4 {[%emt 0:00:14]} Nf6 {[%emt 0:00:02]} 2. e5 {[%emt 0:00:16]} Nd5 {
[%emt 0:00:01]} 3. c4 {[%emt 0:00:01]} Nb6 {[%emt 0:00:01]} 4. d4 {[%emt 0:00:
04]} d6 {[%emt 0:00:01]} 5. exd6 {[%emt 0:00:04]} cxd6 {[%emt 0:00:01]} 6. Nc3
{[%emt 0:00:04]} g6 {[%emt 0:00:02]} 7. Be2 {[%emt 0:00:03]} Bg7 {[%emt 0:00:
02]} 8. Be3 {[%emt 0:00:04]} O-O {[%emt 0:00:02]} 9. h3 {[%emt 0:00:04]} Nc6 {
[%emt 0:00:11]} 10. Nf3 {[%emt 0:00:06]} Bf5 {[%emt 0:00:03]} 11. O-O {[%emt 0:
00:06]} d5 {[%emt 0:00:01]} 12. b3 {[%emt 0:00:58]} dxc4 {[%emt 0:01:02]} 13.
bxc4 {[%emt 0:00:12]} Rc8 {[%emt 0:00:10]} 14. Rc1 {[%emt 0:00:42]} Na5 {
[%emt 0:01:42]} 15. c5 {[%emt 0:01:31]} Nd5 {[%emt 0:00:01]} 16. Nxd5 {[%emt 0:
00:23]} Qxd5 {[%emt 0:00:02]} 17. Qa4 {[%emt 0:00:01]} b6 {[%emt 0:00:02]} 18.
Bd2 {[%emt 0:02:38]} Nc6 {[%emt 0:07:34]} 19. Bc4 {[%emt 0:00:09]} Qd8 {
[%emt 0:00:02]} 20. Ba6 {[%emt 0:00:49]} Nxd4 {[%emt 0:01:40]} 21. Nxd4 {
[%emt 0:00:24]} Bxd4 {[%emt 0:00:25]} 22. Bxc8 {[%emt 0:00:07]} Bxc8 {[%emt 0:
00:01]} 23. Bh6 {[%emt 0:00:32]} Re8 {[%emt 0:00:09]} 24. Rfd1 {[%emt 0:02:09]}
bxc5 {[%emt 0:00:05]} 25. Rxc5 {[%emt 0:01:29]} Bxc5 {[%emt 0:00:10]} 26. Rxd8
{[%emt 0:00:02]} Rxd8 {[%emt 0:00:01]} 27. Qc6 {[%emt 0:00:45]} Bd6 {[%emt 0:
01:49]} 28. Qc3 {[%emt 0:00:22]} f6 {[%emt 0:00:11]} 29. Qa5 {[%emt 0:00:43]}
Re8 {[%emt 0:01:07]} 30. Qd5+ {[%emt 0:00:01]} Kh8 {[%emt 0:00:00]} 31. Qf7 {
[%emt 0:01:02]} Rg8 {[%emt 0:00:02]} 32. a4 {[%emt 0:00:40]} Bd7 {[%emt 0:00:
03]} 33. a5 {[%emt 0:00:09]} Be8 {[%emt 0:00:01]} 34. Qd5 {[%emt 0:00:38]} Bd7
{[%emt 0:00:05]} 35. f4 {[%emt 0:00:46]} Rb8 {[%emt 0:01:03]} 36. Qf7 {[%emt 0:
00:14]} Rg8 {[%emt 0:00:01]} 37. h4 {[%emt 0:00:53]} a6 {[%emt 0:00:04]} 38.
Kh2 {[%emt 0:00:40]} Be8 {[%emt 0:00:02]} 39. Qe6 Bc6 {[%emt 0:00:12]} 40. Qf7
{[%emt 0:00:35]} Be8 {[%emt 0:00:01]} 41. Qe6 {[%emt 0:00:01]} Bc6 {[%emt 0:00:
03]} 42. Qf7 {[%emt 0:00:12]} 1/2-1/2

[Event "European Rapid Championship 2021"]
[Site "Katowice"]
[Date "2021.12.18"]
[Round "3.13"]
[White "Kanicki, Krzysztof"]
[Black "Mis, Mieszko"]
[Result "0-1"]
[ECO "B12"]
[WhiteElo "2004"]
[BlackElo "2237"]
[Annotator "NA"]
[PlyCount "66"]
[EventDate "2021.12.18"]
[EventType "swiss"]
[EventCountry "POL"]
[SourceTitle "playchess.com"]
[Source "ChessBase"]
[SourceQuality "1"]
[TimeControl "900+10"]

1. e4 {[%emt 0:00:02]} c6 {[%emt 0:00:08]} 2. d4 {[%emt 0:00:02]} d5 {[%emt 0:
00:01]} 3. e5 {[%emt 0:00:03]} Bf5 {[%emt 0:00:03]} 4. Nf3 {[%emt 0:00:01]} e6
{[%emt 0:00:03]} 5. Be2 {[%emt 0:00:05]} c5 {[%emt 0:00:16]} 6. Be3 {[%emt 0:
00:36]} Qb6 {[%emt 0:00:11]} 7. Nc3 {[%emt 0:01:35]} Nc6 {[%emt 0:00:04]} 8.
dxc5 {[%emt 0:01:40]} Bxc5 {[%emt 0:00:16]} 9. Bxc5 {[%emt 0:00:21]} Qxc5 {
[%emt 0:00:01]} 10. Nb5 {[%emt 0:00:15]} Kf8 {[%emt 0:00:08]} 11. c3 {[%emt 0:
00:57]} Be4 {[%emt 0:00:54]} 12. b4 {[%emt 0:01:25]} Qb6 {[%emt 0:00:38]} 13.
Nbd4 {[%emt 0:00:08]} Nge7 {[%emt 0:00:49]} 14. O-O {[%emt 0:00:18]} Bxf3 {
[%emt 0:01:05]} 15. Nxf3 {[%emt 0:00:08]} Qc7 {[%emt 0:00:51]} 16. Qd2 {
[%emt 0:01:14]} Nxe5 {[%emt 0:01:17]} 17. Nxe5 {[%emt 0:00:06]} Qxe5 {[%emt 0:
00:01]} 18. f4 {[%emt 0:00:08]} Qf6 {[%emt 0:00:26]} 19. c4 {[%emt 0:01:07]} g6
{[%emt 0:01:18]} 20. c5 {[%emt 0:00:20]} Kg7 {[%emt 0:00:23]} 21. Rac1 {
[%emt 0:00:07]} Rac8 {[%emt 0:00:59]} 22. Rfd1 {[%emt 0:00:13]} h5 {[%emt 0:00:
26]} 23. a4 {[%emt 0:00:27]} Rc7 {[%emt 0:00:19]} 24. Rc2 {[%emt 0:01:05]} Rhc8
{[%emt 0:00:07]} 25. a5 {[%emt 0:01:01]} Nf5 {[%emt 0:00:41]} 26. Bf3 {[%emt 0:
01:22]} b6 {[%emt 0:01:02]} 27. axb6 {[%emt 0:01:43]} axb6 {[%emt 0:00:01]} 28.
Rdc1 {[%emt 0:00:03]} bxc5 {[%emt 0:02:37]} 29. Rxc5 {[%emt 0:00:48]} Rxc5 {
[%emt 0:00:16]} 30. bxc5 {[%emt 0:00:10]} Qd4+ {[%emt 0:01:33]} 31. Qxd4+ {
[%emt 0:00:01]} Nxd4 {[%emt 0:00:00]} 32. Bd1 {[%emt 0:01:28]} f6 {[%emt 0:00:
04]} 33. Ba4 {[%emt 0:00:18]} Ne2+ {[%emt 0:00:02]} 0-1

[Event "European Rapid Championship 2021"]
[Site "Katowice"]
[Date "2021.12.18"]
[Round "3.14"]
[White "Sumets, Andrey"]
[Black "Rigopoulos-Tsigkos, Alexandros"]
[Result "1-0"]
[ECO "B43"]
[WhiteElo "2508"]
[BlackElo "2076"]
[Annotator "ChessBase"]
[PlyCount "61"]
[EventDate "2021.12.18"]
[EventType "swiss"]
[EventCountry "POL"]
[SourceTitle "playchess.com"]
[Source "ChessBase"]
[SourceQuality "1"]
[TimeControl "900+10"]

1. e4 {[%emt 0:00:05]} c5 {[%emt 0:03:19]} 2. Nf3 {[%emt 0:00:12]} e6 {[%emt 0:
00:01]} 3. d4 {[%emt 0:00:04]} cxd4 {[%emt 0:00:01]} 4. Nxd4 {[%emt 0:00:01]}
a6 {[%emt 0:00:01]} 5. Nc3 {[%emt 0:00:06]} b5 {[%emt 0:00:01]} 6. Bd3 {
[%emt 0:00:01]} Bb7 {[%emt 0:00:01]} 7. O-O {[%emt 0:00:18]} Bc5 {[%emt 0:00:
02]} 8. Nb3 {[%emt 0:02:09]} Be7 {[%emt 0:00:01]} 9. e5 {[%emt 0:01:21]} Qc7 {
[%emt 0:00:07]} 10. Re1 {[%emt 0:00:21]} Nc6 {[%emt 0:00:04]} 11. Bf4 {[%emt 0:
00:21]} g5 {[%emt 0:02:04]} 12. Bg3 {[%emt 0:00:13]} h5 {[%emt 0:00:10]} 13. h3
{[%emt 0:00:02]} h4 {[%emt 0:02:54]} 14. Bh2 {[%emt 0:00:02]} Nh6 {[%emt 0:00:
02]} 15. Qe2 {[%emt 0:02:46]} g4 {[%emt 0:01:00]} 16. hxg4 {[%emt 0:00:07]} Rg8
{[%emt 0:00:45]} 17. f3 {[%emt 0:00:24]} O-O-O {[%emt 0:01:04]} 18. a4 {
[%emt 0:00:07]} b4 {[%emt 0:00:16]} 19. Ne4 {[%emt 0:00:04]} Nxe5 {[%emt 0:01:
07]} 20. Nf2 {[%emt 0:01:10]} d6 {[%emt 0:00:51]} 21. Bxa6 {[%emt 0:00:31]} f5
{[%emt 0:00:38]} 22. Bxb7+ {[%emt 0:01:07]} Qxb7 {[%emt 0:00:08]} 23. Bxe5 {
[%emt 0:00:13]} dxe5 {[%emt 0:00:19]} 24. Na5 {[%emt 0:00:51]} Qb6 {[%emt 0:00:
32]} 25. Qc4+ {[%emt 0:00:43]} Kd7 {[%emt 0:02:07]} 26. Rxe5 {[%emt 0:00:24]}
Bf6 {[%emt 0:00:49]} 27. Rb5 {[%emt 0:00:29]} Qe3 {[%emt 0:00:35]} 28. Rb7+ {
[%emt 0:01:51]} Ke8 {[%emt 0:00:03]} 29. Qb5+ {[%emt 0:00:06]} Kf8 {[%emt 0:00:
06]} 30. Qxb4+ {[%emt 0:00:03]} Ke8 {[%emt 0:00:04]} 31. Re1 {[%emt 0:00:14]}
1-0

[Event "European Rapid Championship 2021"]
[Site "Katowice"]
[Date "2021.12.18"]
[Round "3.14"]
[White "Putlak, Wojciech"]
[Black "Godzwon, Iwo"]
[Result "1/2-1/2"]
[ECO "A04"]
[WhiteElo "2000"]
[BlackElo "2352"]
[Annotator "NA"]
[PlyCount "60"]
[EventDate "2021.12.18"]
[EventType "swiss"]
[EventCountry "POL"]
[SourceTitle "playchess.com"]
[Source "ChessBase"]
[SourceQuality "1"]
[TimeControl "900+10"]

1. Nf3 {[%emt 0:00:02]} c5 {[%emt 0:00:04]} 2. c4 {[%emt 0:00:03]} g6 {[%emt 0:
00:10]} 3. g3 {[%emt 0:00:05]} Bg7 {[%emt 0:00:01]} 4. Bg2 {[%emt 0:00:03]} Nc6
{[%emt 0:00:02]} 5. O-O {[%emt 0:00:06]} e5 {[%emt 0:00:02]} 6. Nc3 {[%emt 0:
00:10]} Nge7 {[%emt 0:00:02]} 7. d3 {[%emt 0:00:09]} O-O {[%emt 0:00:04]} 8. a3
{[%emt 0:00:29]} d6 {[%emt 0:00:18]} 9. Rb1 {[%emt 0:00:09]} f5 {[%emt 0:00:11]
} 10. Bd2 {[%emt 0:00:19]} a5 {[%emt 0:00:53]} 11. Ne1 {[%emt 0:00:20]} Be6 {
[%emt 0:00:15]} 12. Nc2 {[%emt 0:00:05]} d5 {[%emt 0:00:28]} 13. cxd5 {[%emt 0:
00:14]} Nxd5 {[%emt 0:00:01]} 14. Nxd5 {[%emt 0:00:55]} Bxd5 {[%emt 0:00:02]}
15. Bxd5+ {[%emt 0:01:11]} Qxd5 {[%emt 0:00:02]} 16. Ne3 {[%emt 0:00:47]} Qe6 {
[%emt 0:00:22]} 17. a4 {[%emt 0:00:31]} f4 {[%emt 0:01:08]} 18. Nc4 {[%emt 0:
00:28]} Qh3 {[%emt 0:00:23]} 19. Bc3 {[%emt 0:00:59]} e4 {[%emt 0:08:41]} 20.
dxe4 {[%emt 0:01:22]} Bd4 {[%emt 0:00:01]} 21. Bxd4 {[%emt 0:01:31]} Nxd4 {
[%emt 0:00:02]} 22. Ne5 {[%emt 0:01:40]} Rad8 {[%emt 0:00:39]} 23. Qd3 {
[%emt 0:00:27]} Qh5 {[%emt 0:03:04]} 24. Nf3 {[%emt 0:00:26]} fxg3 {[%emt 0:00:
02]} 25. Qc4+ {[%emt 0:00:38]} Kh8 {[%emt 0:01:41]} 26. fxg3 {[%emt 0:00:29]}
Rxf3 {[%emt 0:00:34]} 27. exf3 {[%emt 0:00:39]} Nxf3+ {[%emt 0:00:00]} 28. Rxf3
{[%emt 0:00:30]} Qxf3 {[%emt 0:00:02]} 29. Qc3+ {[%emt 0:00:23]} Qxc3 {[%emt 0:
00:10]} 30. bxc3 {[%emt 0:00:02]} Rd3 {[%emt 0:00:17]} 1/2-1/2

[Event "European Rapid Championship 2021"]
[Site "Katowice"]
[Date "2021.12.18"]
[Round "3.15"]
[White "Kulon, Klaudia"]
[Black "Vidruska, Renate"]
[Result "1-0"]
[ECO "A20"]
[WhiteElo "2328"]
[BlackElo "1993"]
[Annotator "NA"]
[PlyCount "55"]
[EventDate "2021.12.18"]
[EventType "swiss"]
[EventCountry "POL"]
[SourceTitle "playchess.com"]
[Source "ChessBase"]
[SourceQuality "1"]
[TimeControl "900+10"]

1. c4 {[%emt 0:00:03]} e5 {[%emt 0:00:32]} 2. g3 {[%emt 0:00:03]} c6 {[%emt 0:
00:02]} 3. Bg2 {[%emt 0:00:09]} d5 {[%emt 0:00:09]} 4. cxd5 {[%emt 0:00:05]}
cxd5 {[%emt 0:00:02]} 5. Qb3 {[%emt 0:00:08]} Nf6 {[%emt 0:00:18]} 6. Nc3 {
[%emt 0:00:02]} Nc6 {[%emt 0:00:32]} 7. Nxd5 {[%emt 0:00:57]} Nxd5 {[%emt 0:00:
32]} 8. Qxd5 {[%emt 0:00:25]} Bd6 {[%emt 0:00:12]} 9. Qb3 {[%emt 0:01:17]} Nd4
{[%emt 0:00:43]} 10. Qd1 {[%emt 0:00:12]} Qc7 {[%emt 0:01:05]} 11. Be4 {
[%emt 0:01:10]} f5 {[%emt 0:00:17]} 12. Bb1 {[%emt 0:00:13]} Bd7 {[%emt 0:01:
53]} 13. b3 {[%emt 0:00:13]} O-O {[%emt 0:01:59]} 14. Bb2 {[%emt 0:00:04]} Bc6
{[%emt 0:00:14]} 15. f3 {[%emt 0:00:09]} Rae8 {[%emt 0:00:49]} 16. e3 {[%emt 0:
00:19]} Ne6 {[%emt 0:00:20]} 17. Nh3 {[%emt 0:00:07]} e4 {[%emt 0:01:24]} 18.
f4 {[%emt 0:00:10]} Nc5 {[%emt 0:00:18]} 19. O-O {[%emt 0:00:16]} h6 {[%emt 0:
00:03]} 20. b4 {[%emt 0:00:35]} Na4 {[%emt 0:00:16]} 21. Bd4 {[%emt 0:00:09]}
b5 {[%emt 0:00:18]} 22. a3 {[%emt 0:00:16]} Kh7 {[%emt 0:00:06]} 23. Ba2 {
[%emt 0:00:07]} a5 {[%emt 0:00:08]} 24. Rc1 {[%emt 0:00:08]} Qb7 {[%emt 0:00:
24]} 25. Qh5 {[%emt 0:00:13]} Be7 {[%emt 0:01:54]} 26. Bf7 {[%emt 0:00:50]} Bf6
{[%emt 0:00:28]} 27. Qg6+ {[%emt 0:00:24]} Kh8 {[%emt 0:00:01]} 28. Ng5 {
[%emt 0:00:10]} 1-0